bitfinex-derivatives/quotes_BTCF0:USTF0_20250211
["timestamp","ask_amount","ask_price","bid_price","bid_amount"]
[1739302504613,0.2841,94995.0,94994.0,0.002137]
[1739302504803,0.2811,94995.0,94994.0,0.002137]
[1739302505004,0.2831,94995.0,94994.0,0.002137]
[1739302506019,0.2831,94995.0,94994.0,0.001137]
[1739302506020,0.2751,94995.0,94994.0,0.001137]
[1739302506315,0.2821,94995.0,94994.0,0.002137]
[1739302507119,0.6429,94995.0,94994.0,0.002137]
[1739302507614,0.6359,94995.0,94994.0,0.001137]
[1739302507814,0.6509,94995.0,94994.0,0.002137]
[1739302508207,0.017,94995.0,94994.0,0.002137]
[1739302508521,0.00015789,95004.0,94994.0,1.862937]
[1739302508810,0.00015789,95004.0,95003.0,0.5713307]
[1739302509408,0.18398702,95015.0,95003.0,0.3608]
[1739302509607,0.18398702,95015.0,95014.0,0.3608]
[1739302509814,0.12781858,95050.0,95014.0,0.3608]
[1739302509815,0.3608,95039.0,95014.0,0.3608]
[1739302510010,0.0921,95038.0,95026.0,0.001137]
[1739302510212,0.2104565,95037.0,95026.0,0.001137]
[1739302510716,0.2104588,95036.0,95026.0,0.001137]
[1739302510909,0.2104588,95036.0,95031.0,0.001137]
[1739302511106,0.0921,95038.0,95031.0,0.001137]
[1739302511314,0.006,95038.0,95031.0,0.001137]
[1739302511515,0.015,95037.0,95031.0,0.001137]
[1739302511816,0.006,95036.0,95032.0,1.5]
[1739302512015,0.006,95036.0,95034.0,0.001137]
[1739302512221,0.015,95038.0,95034.0,0.001137]
[1739302512419,0.017,95038.0,95034.0,0.001137]
[1739302512818,0.017,95038.0,95034.0,0.361937]
[1739302513124,0.21648046,95052.0,95036.0,0.001137]
[1739302513420,0.21648046,95052.0,95051.0,0.7216]
[1739302513621,0.30829253,95058.0,95051.0,0.8054]
[1739302513817,0.30829253,95058.0,95052.0,0.1823]
[1739302514018,0.30829253,95058.0,95055.0,0.001137]
[1739302514317,0.30829253,95058.0,95057.0,0.3608]
[1739302514523,0.30829253,95058.0,95055.0,0.001137]
[1739302514909,0.00015789,95065.0,95055.0,0.301137]
[1739302515113,0.33912179,95067.0,95062.0,0.3608]
[1739302515320,0.0935,95087.0,95062.0,0.3608]
[1739302515519,0.3038451,95087.0,95063.0,0.12781858]
[1739302515720,0.3608,95079.0,95062.0,0.3608]
[1739302515924,0.2103894,95067.0,95059.0,0.001137]
[1739302516216,0.2103894,95067.0,95063.0,0.001137]
[1739302516919,0.2103956,95064.0,95063.0,0.001137]
[1739302517825,0.2103956,95064.0,95063.0,0.002137]
[1739302518014,0.2103956,95064.0,95063.0,0.005137]
[1739302518209,0.0911,95066.0,95063.0,0.004137]
[1739302518426,0.0911,95066.0,95063.0,0.005137]
[1739302518928,0.3608,95068.0,95063.0,0.005137]
[1739302519126,0.0001578,95073.0,95065.0,0.001137]
[1739302519326,0.210388,95068.0,95065.0,0.001137]
[1739302519524,0.2103912,95066.0,95065.0,0.001137]
[1739302520913,0.2103912,95066.0,95065.0,0.007137]
[1739302521116,0.3608,95071.0,95065.0,0.007137]
[1739302521621,0.001,95066.0,95065.0,0.001137]
[1739302522715,0.001,95066.0,95042.0,0.3608]
[1739302522920,0.2104259,95051.0,95042.0,0.3608]
[1739302523929,0.2104259,95051.0,95045.0,0.00615789]
[1739302524118,0.2114259,95051.0,95045.0,0.00615789]
[1739302524319,0.001,95051.0,95045.0,0.00615789]
[1739302524514,0.2104341,95047.0,95045.0,0.00015789]
[1739302524923,0.2104341,95047.0,95045.0,0.00315789]
[1739302525322,0.1843,95050.0,95045.0,0.00315789]
[1739302525723,0.3039122,95057.0,95045.0,0.00315789]
[1739302526026,0.0935,95057.0,95045.0,0.00315789]
[1739302526432,0.002,95047.0,95045.0,0.00015789]
[1739302526620,0.002,95047.0,95045.0,0.00115789]
[1739302527330,0.3608,95049.0,95030.0,0.18699466]
[1739302527533,0.2104529,95039.0,95030.0,0.18699466]
[1739302527727,0.3608,95049.0,95030.0,0.18699466]
[1739302528029,0.0897,95038.0,95030.0,0.18699466]
[1739302528331,0.2104683,95032.0,95030.0,0.18699466]
[1739302528530,0.4505,95031.0,95030.0,0.18699466]
[1739302528718,0.2104709,95030.0,95027.0,0.00116]
[1739302528925,0.210482,95025.0,95024.0,0.0001578]
[1739302530430,0.212482,95025.0,95024.0,0.0001578]
[1739302531035,0.216482,95025.0,95024.0,0.0001578]
[1739302531732,0.006,95025.0,95024.0,0.0001578]
[1739302532432,0.006,95025.0,95002.0,0.18772176]
[1739302532433,0.2105308,95003.0,94980.0,0.2105802]
[1739302532627,0.3608,94992.0,94973.0,0.3608]
[1739302532827,0.3608,94992.0,94974.0,1.5]
[1739302533621,0.36095788,94992.0,94980.0,0.015]
[1739302534538,0.36095788,94992.0,94974.0,0.00915788]
[1739302535028,0.3608,94984.0,94974.0,0.00715788]
[1739302535342,0.2105896,94977.0,94974.0,0.00715788]
[1739302535835,0.2105896,94977.0,94974.0,0.00015788]
[1739302536032,0.2055896,94977.0,94974.0,0.00015788]
[1739302536743,0.2105911,94976.0,94974.0,0.01215788]
[1739302537131,0.2105911,94976.0,94974.0,0.00915788]
[1739302537327,0.2105911,94976.0,94974.0,0.01215788]
[1739302537834,0.001,94977.0,94974.0,0.01215788]
[1739302538934,0.001,94976.0,94974.0,0.01015788]
[1739302539731,0.2105826,94980.0,94974.0,0.01015788]
[1739302539732,0.001,94977.0,94974.0,0.00615788]
[1739302540030,0.001,94977.0,94974.0,0.00815788]
[1739302540629,0.3608,95003.0,94974.0,0.00215788]
[1739302540834,0.001,94976.0,94975.0,0.3608]
[1739302541535,0.001,94976.0,94975.0,1.8608]
[1739302542444,0.001,94976.0,94975.0,2.0713928]
[1739302542643,0.2105627,94989.0,94980.0,0.2105815]
[1739302542838,0.00015788,94992.0,94983.0,0.3608]
[1739302543045,0.00015788,94992.0,94990.0,0.2105588]
[1739302543337,0.3608,95005.0,94996.0,0.2105456]
[1739302543529,0.5713277,95005.0,94996.0,0.2105456]
[1739302543933,0.5713277,95005.0,94996.0,1.7105456]
[1739302544333,0.5713277,95005.0,94996.0,0.2105456]
[1739302544934,0.00015788,95010.0,95000.0,0.3608]
[1739302545131,0.00015788,95010.0,95000.0,0.55209228]
[1739302545344,0.00015788,95010.0,95006.0,0.2105239]
[1739302545539,0.00015788,95010.0,95000.0,0.5713356]
[1739302545751,0.2105239,95007.0,95000.0,0.5713356]
[1739302546041,0.009,95005.0,95000.0,0.5713356]
[1739302546235,0.013,95005.0,95000.0,0.5713356]
[1739302546440,0.013,95005.0,95003.0,0.21053]
[1739302546646,0.00115788,95010.0,95003.0,0.21053]
[1739302546944,0.21167488,95010.0,95003.0,0.21053]
[1739302547146,0.2105193,95009.0,95003.0,0.21053]
[1739302547342,0.2105334,95002.0,95000.0,0.3608]
[1739302548445,0.003,95005.0,95000.0,0.3608]
[1739302548943,0.003,95005.0,94991.0,0.21071468]
[1739302549249,0.2105293,95004.0,94991.0,0.00015788]
[1739302549543,0.3608,94998.0,94991.0,0.00015788]
[1739302549747,0.210551,94994.0,94991.0,0.00015788]
[1739302549939,0.3608,94998.0,94991.0,0.21071438]
[1739302550140,0.5713427,94998.0,94992.0,0.2105549]
[1739302550547,0.3608,94998.0,94996.0,0.2105459]
[1739302550850,0.3638,94998.0,94996.0,0.2105459]
[1739302551037,0.003,94998.0,94996.0,0.2105459]
[1739302551444,0.003,94998.0,94997.0,0.2105439]
[1739302552847,0.00015788,95010.0,95009.0,0.2105175]
[1739302553154,0.15487169,95036.0,95009.0,0.2105175]
[1739302553155,0.2104909,95021.0,95020.0,0.12773822]
[1739302553447,0.2104909,95021.0,94998.0,0.2419353]
[1739302553448,0.3608,95025.0,95017.0,0.3608]
[1739302553653,0.3608,95025.0,95017.0,0.5712994]
[1739302553952,0.2104842,95024.0,95017.0,0.5712994]
[1739302554146,0.2104778,95027.0,95021.0,0.2104897]
[1739302554341,0.005,95021.0,95020.0,0.2104931]
[1739302554945,0.005,95021.0,95017.0,0.5533921]
[1739302554946,0.005,95021.0,95017.0,0.36188]
[1739302555139,0.2104975,95018.0,95017.0,0.3608]
[1739302555345,0.005,95021.0,95017.0,0.3608]
[1739302555851,0.2104975,95018.0,95017.0,0.3608]
[1739302556048,0.2105062,95015.0,95011.0,0.36095788]
[1739302556967,0.004,95021.0,95011.0,0.36095788]
[1739302557253,0.2104851,95024.0,95011.0,0.36095788]
[1739302557451,0.004,95015.0,95011.0,0.36095788]
[1739302557652,0.004,95015.0,95014.0,0.2105064]
[1739302558852,0.002,95015.0,95011.0,0.36095788]
[1739302559148,0.002,95021.0,95011.0,0.36095788]
[1739302559447,0.2105108,95012.0,95011.0,0.00015788]
[1739302559954,0.2085108,95012.0,95011.0,0.00015788]
[1739302560547,0.2155108,95012.0,95011.0,0.00115788]
[1739302560950,0.2195108,95012.0,95011.0,0.00115788]
[1739302561550,0.3718,95012.0,95011.0,0.00115788]
[1739302561751,0.5823108,95012.0,95011.0,0.00115788]
[1739302562152,0.5843108,95012.0,95011.0,0.00115788]
[1739302562353,0.5803108,95012.0,95011.0,0.00115788]
[1739302562556,0.5853108,95012.0,95011.0,0.00115788]
[1739302562955,0.5763108,95012.0,95011.0,0.00015788]
[1739302563157,0.5853108,95012.0,95011.0,0.00115788]
[1739302563558,0.5803108,95012.0,95011.0,0.00115788]
[1739302563758,0.5853108,95012.0,95011.0,0.00115788]
[1739302564659,0.2245108,95012.0,95011.0,0.00115788]
[1739302564853,0.2155108,95012.0,95011.0,0.00015788]
[1739302565155,0.2245108,95012.0,95011.0,0.00115788]
[1739302565765,0.2245108,95012.0,94987.0,0.083]
[1739302565766,0.2105751,94983.0,94970.0,0.5523121]
[1739302565953,0.2095773,94982.0,94975.0,0.104519]
[1739302566257,0.3608,94984.0,94975.0,0.0937]
[1739302566961,0.00015788,94989.0,94979.0,0.3608]
[1739302567156,0.210549,94995.0,94979.0,0.5523121]
[1739302567360,0.37242822,95007.0,94979.0,0.1915121]
[1739302567361,0.3608,94990.0,94979.0,0.1915121]
[1739302567555,0.2105694,94986.0,94977.0,0.2105862]
[1739302567752,0.2105694,94986.0,94975.0,0.0957]
[1739302567958,0.2105694,94986.0,94980.0,0.2105808]
[1739302568463,0.3608,94990.0,94975.0,0.0957]
[1739302568660,0.2105906,94976.0,94975.0,0.0957]
[1739302568965,0.2105892,94977.0,94975.0,0.002]
[1739302569354,0.2105892,94977.0,94970.0,0.00015788]
[1739302569355,0.2095892,94977.0,94970.0,0.00015788]
[1739302569863,0.3608,94972.0,94970.0,0.00015788]
[1739302570158,0.3518,94972.0,94970.0,0.00015788]
[1739302570664,0.2106017,94971.0,94970.0,0.00015788]
[1739302570868,0.2106017,94971.0,94970.0,0.00115788]
[1739302572865,0.2106017,94971.0,94970.0,0.00015788]
[1739302573756,0.2226017,94971.0,94970.0,0.00015788]
[1739302574061,0.5834017,94971.0,94970.0,0.00015788]
[1739302574460,0.5854017,94971.0,94970.0,0.00015788]
[1739302574665,0.2246017,94971.0,94970.0,0.00015788]
[1739302574860,0.014,94971.0,94970.0,0.21076168]
[1739302575059,0.2105376,95000.0,94990.0,0.2105592]
[1739302575256,0.00060001,94996.0,94983.0,0.3608]
[1739302575456,0.2105485,94995.0,94991.0,1.5]
[1739302575660,0.1901,95005.0,94991.0,1.7105573]
[1739302575860,0.1901,95005.0,94991.0,2.0713573]
[1739302576161,0.1555634,94998.0,94997.0,0.210544]
[1739302576358,0.21682036,95017.0,94997.0,0.210544]
[1739302576359,0.21682036,95017.0,94997.0,0.0828]
[1739302576567,0.25021832,95025.0,95024.0,0.2104842]
[1739302576865,0.24965831,95025.0,95024.0,0.5712842]
[1739302577069,0.2104464,95042.0,95024.0,0.3608]
[1739302577361,0.3608,95045.0,95024.0,0.3608]
[1739302577362,0.00010517,95034.0,95030.0,0.12782224]
[1739302577559,0.00010517,95034.0,95024.0,0.3608]
[1739302577867,0.015,95025.0,95024.0,0.3618]
[1739302578559,0.022,95025.0,95024.0,0.3628]
[1739302579960,0.007,95025.0,95024.0,0.3628]
[1739302580861,0.022,95025.0,95024.0,0.3628]
[1739302582564,0.3828,95025.0,95024.0,0.002]
[1739302586359,0.022,95025.0,95024.0,0.002]
[1739302586573,0.022,95025.0,95024.0,0.3628]
[1739302587266,0.022,95025.0,95024.0,1.8628]
[1739302587663,0.022,95025.0,95024.0,0.3628]
[1739302587860,0.022,95025.0,95024.0,0.002]
[1739302590073,0.022,95025.0,95024.0,0.212484]
[1739302590265,0.022,95025.0,95024.0,0.573284]
[1739302590666,0.022,95025.0,95024.0,0.3628]
[1739302593371,0.00010517,95034.0,95024.0,0.46936497]
[1739302593565,0.00010517,95034.0,95025.0,0.09586497]
[1739302593870,0.00010517,95034.0,95033.0,0.3608]
[1739302594870,0.00310517,95034.0,95033.0,0.3608]
[1739302595166,0.00010517,95034.0,95033.0,0.37423008]
[1739302595371,0.01210517,95034.0,95033.0,0.37541041]
[1739302595969,0.01110517,95034.0,95033.0,0.3628]
[1739302596272,0.01110517,95034.0,95033.0,0.3618]
[1739302596273,0.00810517,95034.0,95033.0,0.3618]
[1739302596569,0.01110517,95034.0,95033.0,0.3618]
[1739302596769,0.00310517,95034.0,95033.0,0.3608]
[1739302603583,0.00310517,95034.0,95033.0,0.37472471]
[1739302605579,0.00310517,95034.0,95033.0,0.39692135]
[1739302605883,0.00310517,95034.0,95033.0,0.39792135]
[1739302605884,0.01110517,95034.0,95033.0,0.39792135]
[1739302606979,0.01110517,95034.0,95033.0,0.75872135]
[1739302607167,0.3608,95068.0,95033.0,1.05872135]
[1739302607367,0.3608,95068.0,95057.0,0.12762746]
[1739302607368,0.2104022,95061.0,95057.0,0.12762746]
[1739302607570,0.3608,95068.0,95058.0,0.03612135]
[1739302607768,0.3608,95068.0,95059.0,0.01392554]
[1739302607972,0.2103963,95064.0,95060.0,0.01392554]
[1739302608179,0.3608,95068.0,95061.0,0.01392554]
[1739302608180,0.2104,95062.0,95061.0,0.01392554]
[1739302608477,0.1094,95067.0,95054.0,0.3608]
[1739302608682,0.2104069,95059.0,95055.0,0.01321787]
[1739302608881,0.2104069,95059.0,95054.0,0.3608]
[1739302609584,0.2104118,95057.0,95055.0,0.01326709]
[1739302609782,0.2104118,95057.0,95052.0,0.00015779]
[1739302609980,0.0958,95056.0,95053.0,0.01326706]
[1739302610176,0.0958,95056.0,95052.0,0.00015779]
[1739302610485,0.2104199,95053.0,95052.0,0.00015779]
[1739302610882,0.0958,95056.0,95054.0,0.001]
[1739302611179,0.36144,95068.0,95054.0,0.001]
[1739302611180,0.2103959,95064.0,95061.0,0.001]
[1739302611384,0.2103985,95063.0,95061.0,0.001]
[1739302611582,0.0969,95066.0,95052.0,0.00115779]
[1739302611780,0.210408,95059.0,95052.0,0.00215779]
[1739302611980,0.2104193,95054.0,95052.0,0.00215779]
[1739302612185,0.2104193,95054.0,95052.0,0.00115779]
[1739302612577,0.2104193,95054.0,95052.0,0.00015779]
[1739302612779,0.2104193,95054.0,95052.0,0.00115779]
[1739302614185,0.2124193,95054.0,95052.0,0.00115779]
[1739302614386,0.2124193,95054.0,95052.0,0.00215779]
[1739302614691,0.002,95054.0,95052.0,0.00215779]
[1739302617786,0.002,95054.0,95053.0,1.5]
[1739302618684,0.002,95054.0,95053.0,1.8608]
[1739302618994,0.002,95054.0,95053.0,0.5722195]
[1739302619391,0.002,95054.0,95053.0,0.5732195]
[1739302622789,0.3608,95077.0,95053.0,0.5732195]
[1739302622790,0.3608,95080.0,95065.0,0.2103935]
[1739302622991,0.3608,95072.0,95053.0,0.3628]
[1739302623196,0.3608,95063.0,95053.0,0.002]
[1739302623384,0.3608,95054.0,95053.0,0.002]
[1739302623590,0.3628,95054.0,95053.0,0.002]
[1739302623796,0.4543,95054.0,95053.0,0.002]
[1739302624599,0.4523,95054.0,95049.0,0.10147166]
[1739302624796,0.5712245,95051.0,95049.0,0.10147166]
[1739302625097,0.2104245,95051.0,95049.0,0.10147166]
[1739302625885,0.2104245,95051.0,95049.0,0.10247166]
[1739302626699,0.2104245,95051.0,95049.0,0.11343827]
[1739302627291,0.2104245,95051.0,95049.0,0.01196661]
[1739302627693,0.2104245,95051.0,95049.0,0.01096661]
[1739302627894,0.2104377,95045.0,95044.0,1.8608]
[1739302629301,0.2104377,95045.0,95044.0,1.5]
[1739302629603,0.2104466,95041.0,95040.0,0.00015779]
[1739302629904,0.5712466,95041.0,95040.0,0.00015779]
[1739302630302,0.5712466,95041.0,95040.0,1e-08]
[1739302630897,0.5712466,95041.0,95040.0,0.0108036]
[1739302631292,0.5702466,95041.0,95040.0,0.0108036]
[1739302631498,0.5722466,95041.0,95040.0,0.0108036]
[1739302631801,0.5732466,95041.0,95040.0,0.0108036]
[1739302634796,0.2124466,95041.0,95040.0,0.0108036]
[1739302634993,0.5732466,95041.0,95040.0,0.0108036]
[1739302637600,0.5732466,95041.0,95040.0,1e-08]
[1739302637806,0.6638,95041.0,94996.0,0.31243974]
[1739302638001,0.3608,94999.0,94996.0,0.31243974]
[1739302638211,0.2105429,94998.0,94996.0,0.31243974]
[1739302638807,0.2105511,94994.0,94991.0,0.01350517]
[1739302639012,0.2105533,94993.0,94988.0,0.0972579]
[1739302639603,0.2105617,94989.0,94988.0,0.11098349]
[1739302639799,0.2105617,94989.0,94988.0,0.01388349]
[1739302641111,0.2135617,94989.0,94988.0,0.01388349]
[1739302641508,0.2105617,94989.0,94988.0,0.01388349]
[1739302641710,0.2135617,94989.0,94988.0,0.01388349]
[1739302642710,0.2145617,94989.0,94988.0,0.01388349]
[1739302643414,0.2155617,94989.0,94988.0,0.01388349]
[1739302644912,0.2155617,94989.0,94988.0,0.0001579]
[1739302646311,0.005,94989.0,94988.0,0.0001579]
[1739302647410,0.3608,95019.0,94988.0,0.0816779]
[1739302647610,0.2105101,95013.0,95004.0,0.2105275]
[1739302647917,0.2104946,95020.0,95004.0,0.3961275]
[1739302648112,0.08152,95026.0,95004.0,0.3961275]
[1739302648413,0.2105152,95011.0,95004.0,0.1856]
[1739302649212,0.001,95006.0,95004.0,0.1956]
[1739302649911,0.00015773,95017.0,95004.0,0.1866]
[1739302650117,0.00015773,95017.0,95004.0,0.3971284]
[1739302650504,0.00015773,95017.0,95005.0,0.1]
[1739302650708,0.00015773,95017.0,95006.0,0.2105232]
[1739302650709,0.2105023,95016.0,95006.0,0.2105232]
[1739302651711,0.2105023,95016.0,95011.0,0.3608]
[1739302652017,0.001,95016.0,95011.0,0.3608]
[1739302652504,0.001,95016.0,95006.0,0.12762746]
[1739302652709,0.001,95016.0,95008.0,0.3608]
[1739302652909,0.2105163,95010.0,95008.0,0.3608]
[1739302653211,0.210517,95010.0,95008.0,0.3608]
[1739302653809,0.3608,95009.0,94993.0,0.01337945]
[1739302654009,0.3608,94999.0,94991.0,0.1827]
[1739302654208,0.2105443,94997.0,94991.0,0.1827]
[1739302654408,0.2105499,94995.0,94990.0,0.11045781]
[1739302654614,0.2105499,94995.0,94990.0,0.0971]
[1739302654811,0.3608,94999.0,94990.0,0.0971]
[1739302655004,0.3608,94999.0,94985.0,0.3608]
[1739302655205,0.2105418,94998.0,94997.0,0.18808632]
[1739302656118,0.2105418,94998.0,94997.0,0.08808632]
[1739302656421,0.2105617,94989.0,94988.0,0.0001579]
[1739302656612,0.5703617,94989.0,94988.0,0.0001579]
[1739302658112,0.5703617,94989.0,94982.0,0.31415849]
[1739302658113,0.210575,94983.0,94982.0,0.31415849]
[1739302658415,0.652815,94983.0,94982.0,0.31415849]
[1739302659219,0.210595,94974.0,94953.0,0.1954]
[1739302659523,0.5714357,94956.0,94953.0,0.1954]
[1739302659722,0.3608,94956.0,94954.0,0.0001579]
[1739302661825,0.0001579,94973.0,94955.0,0.3608]
[1739302662023,0.2107552,94973.0,94967.0,0.3608]
[1739302662224,0.2106029,94971.0,94967.0,0.3608]
[1739302662423,0.0001579,94973.0,94959.0,0.210628]
[1739302662624,0.2106053,94970.0,94959.0,0.210628]
[1739302663127,0.2106065,94969.0,94960.0,0.2106257]
[1739302663622,0.12762746,94970.0,94955.0,0.3688]
[1739302663828,0.3608,94966.0,94955.0,0.3688]
[1739302664028,0.2106302,94959.0,94955.0,0.3688]
[1739302664227,0.2106335,94957.0,94955.0,0.3688]
[1739302664529,0.2106221,94962.0,94956.0,0.2106346]
[1739302664927,0.0011579,94973.0,94955.0,0.3688]
[1739302665122,0.0011579,94973.0,94960.0,0.12762746]
[1739302665329,0.0001579,94973.0,94960.0,0.12762746]
[1739302666017,0.2106155,94965.0,94960.0,0.12762746]
[1739302666326,0.0001579,94973.0,94955.0,0.3678]
[1739302666327,0.2106281,94960.0,94955.0,0.3678]
[1739302666518,0.3608,94964.0,94931.0,0.3608]
[1739302666519,0.3608,94956.0,94931.0,0.3608]
[1739302666717,0.2106549,94947.0,94939.0,0.2106724]
[1739302666924,0.3578,94942.0,94937.0,0.12762746]
[1739302668022,0.3578,94942.0,94938.0,0.01292495]
[1739302668220,0.3578,94942.0,94932.0,0.12762746]
[1739302668221,0.3578,94942.0,94939.0,0.01292495]
[1739302668430,0.3578,94942.0,94940.0,0.01292495]
[1739302668624,0.3578,94942.0,94941.0,0.01292495]
[1739302668829,0.31287943,94942.0,94941.0,0.01292495]
[1739302669326,0.31187943,94942.0,94941.0,0.01292495]
[1739302669637,0.31287943,94942.0,94941.0,0.01292495]
[1739302670131,0.31287943,94942.0,94941.0,0.02392495]
[1739302670929,0.31287943,94942.0,94941.0,0.02592495]
[1739302671628,0.31187943,94942.0,94941.0,0.01492495]
[1739302671831,0.31287943,94942.0,94941.0,0.02292495]
[1739302672128,0.31287943,94942.0,94941.0,0.02491453]
[1739302672330,0.31287943,94942.0,94941.0,0.03865739]
[1739302672530,0.31287943,94942.0,94941.0,0.02765739]
[1739302673121,0.31287943,94942.0,94941.0,0.01474286]
[1739302673338,0.31287943,94942.0,94941.0,0.01674286]
[1739302673527,0.15478874,94942.0,94941.0,0.003]
[1739302673724,0.001,94942.0,94941.0,0.003]
[1739302673922,0.3608,94946.0,94941.0,0.003]
[1739302674735,0.001,94942.0,94932.0,0.20826746]
[1739302674931,0.001,94942.0,94941.0,0.004]
[1739302675135,0.3608,94946.0,94941.0,0.004]
[1739302675331,0.3618,94946.0,94941.0,0.004]
[1739302675527,0.3618,94946.0,94932.0,0.22201734]
[1739302675731,0.3618,94946.0,94941.0,0.002]
[1739302675933,0.3618,94946.0,94942.0,0.05583172]
[1739302676241,0.3618,94946.0,94941.0,0.002]
[1739302676432,0.3628,94946.0,94941.0,0.01]
[1739302676735,0.001,94946.0,94942.0,0.3608]
[1739302676938,0.002,94946.0,94944.0,0.2106606]
[1739302677440,0.2105955,94974.0,94962.0,0.2106215]
[1739302677735,0.3608,94979.0,94962.0,0.2106215]
[1739302678040,0.1032,94978.0,94957.0,0.12762746]
[1739302678338,0.2106084,94968.0,94957.0,0.12762746]
[1739302678540,0.3638,94967.0,94957.0,0.12762746]
[1739302678738,0.3608,94958.0,94953.0,0.00015798]
[1739302678935,0.3608,94958.0,94953.0,0.01349509]
[1739302679235,0.3608,94958.0,94953.0,0.00015798]
[1739302679439,0.3608,94958.0,94954.0,0.3026]
[1739302679631,0.002,94967.0,94957.0,0.3608]
[1739302679938,0.002,94967.0,94958.0,0.08032]
[1739302680139,0.3608,94966.0,94954.0,0.3026]
[1739302680526,0.3608,94966.0,94954.0,0.1026]
[1739302680732,0.3608,94957.0,94954.0,0.1026]
[1739302681537,0.3608,94957.0,94954.0,0.3132383]
[1739302681941,0.3638,94957.0,94955.0,0.2106371]
[1739302682238,0.3638,94957.0,94954.0,0.1026]
[1739302682637,0.3608,94957.0,94954.0,0.1026]
[1739302682831,0.3628,94957.0,94954.0,0.1026]
[1739302684435,0.3638,94957.0,94953.0,0.00015798]
[1739302685340,0.3608,94957.0,94954.0,0.01294245]
[1739302685541,0.3608,94957.0,94955.0,0.01294245]
[1739302685741,0.3608,94957.0,94956.0,0.01294245]
[1739302686147,0.3638,94957.0,94956.0,0.01294245]
[1739302687242,0.3638,94957.0,94956.0,0.03414813]
[1739302687640,0.3608,94957.0,94956.0,0.03614813]
[1739302688249,0.3608,94957.0,94956.0,0.01494245]
[1739302689046,0.3608,94957.0,94956.0,0.01394245]
[1739302689239,0.3608,94957.0,94956.0,0.001]
[1739302690549,0.3608,94957.0,94953.0,0.00015798]
[1739302690745,0.3688,94957.0,94956.0,0.001]
[1739302691446,0.3698,94957.0,94956.0,0.001]
[1739302693745,0.009,94957.0,94956.0,0.2116349]
[1739302693946,0.3608,94966.0,94962.0,0.2106213]
[1739302694155,0.3106,94970.0,94965.0,0.210614]
[1739302694446,0.3106,94970.0,94966.0,0.01295936]
[1739302694652,0.3608,94968.0,94967.0,0.01295936]
[1739302695861,0.3608,94968.0,94965.0,0.001]
[1739302696167,0.3608,94968.0,94966.0,0.01301495]
[1739302696466,0.3608,94968.0,94965.0,0.001]
[1739302696467,0.3106,94970.0,94967.0,0.01301495]
[1739302696653,0.3106,94970.0,94963.0,0.3608]
[1739302696654,0.00015798,94971.0,94970.0,0.2106038]
[1739302696853,0.00015798,94971.0,94970.0,0.22361875]
[1739302699666,0.00515798,94971.0,94970.0,0.22461875]
[1739302700170,0.15605035,94996.0,94970.0,1.83058315]
[1739302700368,0.15605035,94996.0,94986.0,0.12762746]
[1739302700672,0.15605035,94996.0,94987.0,0.01301495]
[1739302700877,0.51685035,94996.0,94992.0,0.2105548]
[1739302701165,0.51685035,94996.0,94986.0,0.20794746]
[1739302701364,0.52185035,94996.0,94991.0,0.210557]
[1739302701565,0.52185035,94996.0,94992.0,0.01305035]
[1739302701768,0.52185035,94996.0,94991.0,0.210557]
[1739302701966,0.3608,94994.0,94985.0,0.00015798]
[1739302702167,0.3608,94986.0,94970.0,0.00228]
[1739302702357,0.3608,94971.0,94970.0,0.001]
[1739302702557,0.3608,94971.0,94970.0,0.01426186]
[1739302702971,0.3608,94971.0,94970.0,0.01326186]
[1739302703473,0.3608,94971.0,94967.0,0.31570641]
[1739302703662,0.7216,94971.0,94968.0,0.0133004]
[1739302703864,0.7216,94971.0,94967.0,0.31570641]
[1739302703865,0.7216,94971.0,94969.0,0.0133004]
[1739302704059,0.7216,94971.0,94967.0,0.31570641]
[1739302704267,0.7216,94971.0,94968.0,0.0133004]
[1739302704466,0.7216,94971.0,94967.0,0.31570641]
[1739302705276,0.7216,94971.0,94921.0,1.02882314]
[1739302705277,0.2106134,94966.0,94954.0,0.25205233]
[1739302705578,0.7216,94955.0,94954.0,0.25205233]
[1739302707271,0.7226,94955.0,94954.0,0.25205233]
[1739302708477,0.7226,94955.0,94945.0,0.00015798]
[1739302708680,0.3608,94946.0,94945.0,0.00015798]
[1739302709865,0.3608,94946.0,94945.0,0.00215798]
[1739302710677,0.3618,94946.0,94945.0,0.00015798]
[1739302716281,0.3608,94946.0,94945.0,0.00515798]
[1739302716471,0.3608,94946.0,94945.0,0.00615798]
[1739302717670,0.3608,94946.0,94945.0,0.00815798]
[1739302719081,0.3608,94946.0,94945.0,0.00015798]
[1739302719377,0.3608,94946.0,94945.0,0.00215798]
[1739302720066,0.3618,94946.0,94945.0,0.00015798]
[1739302722381,0.3608,94946.0,94945.0,0.00215798]
[1739302723071,0.3608,94946.0,94945.0,0.00015798]
[1739302723976,0.3618,94946.0,94945.0,0.00015798]
[1739302725470,0.3608,94955.0,94946.0,0.210657]
[1739302725670,0.3608,94967.0,94947.0,0.1018]
[1739302725974,0.3608,94967.0,94954.0,0.12762746]
[1739302726486,0.3608,94967.0,94959.0,0.2106275]
[1739302726778,0.3608,94967.0,94954.0,0.12762746]
[1739302726779,0.3608,94967.0,94960.0,0.2106254]
[1739302727083,0.00115798,94964.0,94960.0,0.2106254]
[1739302728487,0.00015798,94964.0,94960.0,0.2106254]
[1739302728777,0.00115798,94964.0,94960.0,0.2116254]
[1739302729383,0.00115798,94964.0,94960.0,0.2126254]
[1739302730787,0.00115798,94964.0,94960.0,0.002]
[1739302730979,0.00115798,94964.0,94962.0,0.2106216]
[1739302732088,0.00115798,94964.0,94962.0,0.001]
[1739302732589,0.00115798,94964.0,94962.0,0.002]
[1739302734479,0.00015798,94964.0,94962.0,0.001]
[1739302734782,0.21177548,94964.0,94962.0,0.002]
[1739302734986,0.1075,94963.0,94962.0,0.002]
[1739302735282,0.2089,94963.0,94962.0,0.002]
[1739302736488,0.2099,94963.0,94962.0,0.002]
[1739302737286,0.001,94963.0,94962.0,0.002]
[1739302738273,0.3618,94963.0,94962.0,0.002]
[1739302738588,0.001,94963.0,94962.0,0.002]
[1739302741185,0.001,94963.0,94962.0,0.2126216]
[1739302741682,0.001,94963.0,94962.0,0.002]